Workbook

Sheet 多項式近似
A1: x | B1: y
A2: 0 | B2: 1.3
A3: 1.5 | B3: 1.5
A4: 3 | B4: 1.85
A5: 4.5 | B5: 2.5
A6: 6 | B6: 2.5
A7: 7.5 | B7: 2.5
A8: 9 | B8: 2
A9: 10.5 | B9: 1.5
A10: 12 | B10: 2
A11: 13.5 | B11: 1.5
A12: 15 | B12: 1.5
A13: 16.5 | B13: 1.5
A14: 18 | B14: 2
A15: 19.5 | B15: 2.5
A16: 21 | B16: 2
A17: 22.5 | B17: 1.5

Sheet 連立方程式
B2: x | C2: y | E2: a0 | F2: a1 | G2: a2 | H2: a3 | I2: a4 | J2: a5 | K2: a6 | L2: a7 | M2: a8 | N2: a9 | O2: a10 | P2: a11 | Q2: a12 | R2: a13 | S2: a14 | T2: a15
A3: 0 | B3: 0 | C3: 1.3 | E3: 1 | F3: =B3 -> 0 | G3: =B3^2 -> 0 | H3: =B3^3 -> 0 | I3: =B3^4 -> 0 | J3: =B3^5 -> 0 | K3: =B3^6 -> 0 | L3: =B3^7 -> 0 | M3: =B3^8 -> 0 | N3: =B3^9 -> 0 | O3: =B3^10 -> 0 | P3: =B3^11 -> 0 | Q3: =B3^12 -> 0 | R3: =B3^13 -> 0 | S3: =B3^14 -> 0 | T3: =B3^15 -> 0
A4: 1 | B4: 1.5 | C4: 1.5 | E4: 1 | F4: =B4 -> 1.5 | G4: =B4^2 -> 2.25 | H4: =B4^3 -> 3.375 | I4: =B4^4 -> 5.0625 | J4: =B4^5 -> 7.59375 | K4: =B4^6 -> 11.390625 | L4: =B4^7 -> 17.0859375 | M4: =B4^8 -> 25.62890625 | N4: =B4^9 -> 38.44335938 | O4: =B4^10 -> 57.66503906 | P4: =B4^11 -> 86.49755859 | Q4: =B4^12 -> 129.7463379 | R4: =B4^13 -> 194.6195068 | S4: =B4^14 -> 291.9292603 | T4: =B4^15 -> 437.8938904
A5: 2 | B5: 3 | C5: 1.85 | E5: 1 | F5: 3 | G5: =B5^2 -> 9 | H5: 27 | I5: 81 | J5: 243 | K5: 729 | L5: 2187 | M5: 6561 | N5: 19683 | O5: 59049 | P5: 177147 | Q5: 531441 | R5: 1594323 | S5: 4782969 | T5: 14348907
A6: 3 | B6: 4.5 | C6: 2.5 | E6: 1 | F6: 4.5 | G6: 20.25 | H6: 91.125 | I6: 410.0625 | J6: 1845.28125 | K6: 8303.765625 | L6: 37366.94531 | M6: 168151.2539 | N6: 756680.6426 | O6: 3405062.892 | P6: 15322783.01 | Q6: 68952523.55 | R6: 310286356 | S6: 1396288602 | T6: 6283298709
A7: 4 | B7: 6 | C7: 2.5 | E7: 1 | F7: 6 | G7: 36 | H7: 216 | I7: 1296 | J7: 7776 | K7: 46656 | L7: 279936 | M7: 1679616 | N7: 10077696 | O7: 60466176 | P7: 362797056 | Q7: 2176782336 | R7: 13060694016 | S7: 78364164096 | T7: 470184984576
A8: 5 | B8: 7.5 | C8: 2.5 | E8: 1 | F8: 7.5 | G8: 56.25 | H8: 421.875 | I8: 3164.0625 | J8: 23730.46875 | K8: 177978.5156 | L8: 1334838.867 | M8: 10011291.5 | N8: 75084686.28 | O8: 563135147.1 | P8: 4223513603 | Q8: 3.167635202e+10 | R8: 2.375726402e+11 | S8: 1.781794801e+12 | T8: 1.336346101e+13
A9: 6 | B9: 9 | C9: 2 | E9: 1 | F9: 9 | G9: 81 | H9: 729 | I9: 6561 | J9: 59049 | K9: 531441 | L9: 4782969 | M9: 43046721 | N9: 387420489 | O9: 3486784401 | P9: 31381059609 | Q9: 282429536481 | R9: 2541865828329 | S9: 22876792454961 | T9: 205891132094649
A10: 7 | B10: 10.5 | C10: 1.5 | E10: 1 | F10: 10.5 | G10: 110.25 | H10: 1157.625 | I10: 12155.0625 | J10: 127628.1562 | K10: 1340095.641 | L10: 14071004.23 | M10: 147745544.4 | N10: 1551328216 | O10: 1.628894627e+10 | P10: 1.710339358e+11 | Q10: 1.795856326e+12 | R10: 1.885649142e+13 | S10: 1.979931599e+14 | T10: 2.078928179e+15
A11: 8 | B11: 12 | C11: 2 | E11: 1 | F11: 12 | G11: 144 | H11: 1728 | I11: 20736 | J11: 248832 | K11: 2985984 | L11: 35831808 | M11: 429981696 | N11: 5159780352 | O11: 61917364224 | P11: 743008370688 | Q11: 8916100448256 | R11: 106993205379072 | S11: 1283918464548864 | T11: 1.540702157e+16
A12: 9 | B12: 13.5 | C12: 1.5 | E12: 1 | F12: 13.5 | G12: 182.25 | H12: 2460.375 | I12: 33215.0625 | J12: 448403.3438 | K12: 6053445.141 | L12: 81721509.4 | M12: 1103240377 | N12: 1.489374509e+10 | O12: 2.010655587e+11 | P12: 2.714385042e+12 | Q12: 3.664419807e+13 | R12: 4.94696674e+14 | S12: 6678405098358909 | T12: 9.015846883e+16
A13: 10 | B13: 15 | C13: 1.5 | E13: 1 | F13: 15 | G13: 225 | H13: 3375 | I13: 50625 | J13: 759375 | K13: 11390625 | L13: 170859375 | M13: 2562890625 | N13: 38443359375 | O13: 576650390625 | P13: 8649755859375 | Q13: 129746337890625 | R13: 1946195068359375 | S13: 2.919292603e+16 | T13: 4.378938904e+17
A14: 11 | B14: 16.5 | C14: 1.5 | E14: 1 | F14: 16.5 | G14: 272.25 | H14: 4492.125 | I14: 74120.0625 | J14: 1222981.031 | K14: 20179187.02 | L14: 332956585.8 | M14: 5493783665 | N14: 9.064743047e+10 | O14: 1.495682603e+12 | P14: 2.467876295e+13 | Q14: 4.071995886e+14 | R14: 6718793212090882 | S14: 1.10860088e+17 | T14: 1.829191452e+18
A15: 12 | B15: 18 | C15: 2 | E15: 1 | F15: 18 | G15: 324 | H15: 5832 | I15: 104976 | J15: 1889568 | K15: 34012224 | L15: 612220032 | M15: 11019960576 | N15: 198359290368 | O15: 3570467226624 | P15: 64268410079232 | Q15: 1156831381426176 | R15: 2.082296487e+16 | S15: 3.748133676e+17 | T15: 6.746640616e+18
A16: 13 | B16: 19.5 | C16: 2.5 | E16: 1 | F16: 19.5 | G16: 380.25 | H16: 7414.875 | I16: 144590.0625 | J16: 2819506.219 | K16: 54980371.27 | L16: 1072117240 | M16: 2.090628617e+10 | N16: 4.076725804e+11 | O16: 7.949615318e+12 | P16: 1.550174987e+14 | Q16: 3022841224505963 | R16: 5.894540388e+16 | S16: 1.149435376e+18 | T16: 2.241398982e+19
A17: 14 | B17: 21 | C17: 2 | E17: 1 | F17: 21 | G17: 441 | H17: 9261 | I17: 194481 | J17: 4084101 | K17: 85766121 | L17: 1801088541 | M17: 37822859361 | N17: 794280046581 | O17: 16679880978201 | P17: 350277500542221 | Q17: 7355827511386641 | R17: 1.544723777e+17 | S17: 3.243919933e+18 | T17: 6.812231858e+19
A18: 15 | B18: 22.5 | C18: 1.5 | E18: 1 | F18: 22.5 | G18: 506.25 | H18: 11390.625 | I18: 256289.0625 | J18: 5766503.906 | K18: 129746337.9 | L18: 2919292603 | M18: 6.568408356e+10 | N18: 1.47789188e+12 | O18: 3.32525673e+13 | P18: 7.481827643e+14 | Q18: 1.68341122e+16 | R18: 3.787675244e+17 | S18: 8.522269299e+18 | T18: 1.917510592e+20
E20: 逆行列
E21: =MINVERSE(E3:T18) -> 1 | F21: 0 | G21: 0 | H21: 0 | I21: 0 | J21: 0 | K21: 0 | L21: 0 | M21: 0 | N21: 0 | O21: 0 | P21: 0 | Q21: 0 | R21: 0 | S21: 0 | T21: 0
E22: -2.212153006 | F22: 10.0000044 | G22: -35.00002589 | H22: 101.1112057 | I22: -227.5002349 | J22: 400.400421 | K22: -556.1116705 | L22: 612.857702 | M22: -536.250416 | N22: 370.7409637 | O22: -200.2000831 | P22: 82.72728991 | Q22: -25.27777711 | R22: 5.384614009 | S22: -0.714285362 | T22: 0.04444441051
E23: 2.095601425 | F23: -15.45486853 | G23: 65.75872671 | H23: -201.2042579 | I23: 465.3485036 | J23: -832.3600311 | K23: 1168.413548 | L23: -1297.367166 | M23: 1141.580027 | N23: -792.6731533 | O23: 429.5263785 | P23: -177.991577 | Q23: 54.51396793 | R23: -11.63545121 | S23: 1.546094269 | T23: -0.09634249012
E24: -1.145827933 | F24: 10.65277441 | G24: -51.42650711 | H24: 167.1766425 | I24: -399.191492 | J24: 728.0978677 | K24: -1035.563933 | L24: 1160.745803 | M24: -1028.63464 | N24: 718.2081696 | O24: -390.9041538 | P24: 162.575916 | Q24: -49.94354803 | R24: 10.6873054 | S24: -1.423232593 | T24: 0.08885580258
E25: 0.4088781722 | F25: -4.356431874 | G25: 22.96181987 | H25: -78.70560469 | I25: 194.1440038 | J25: -361.7098563 | K25: 522.14499 | L25: -591.681497 | M25: 528.7304516 | N25: -371.6042441 | O25: 203.3342886 | P25: -84.93803405 | Q25: 26.18930455 | R25: -5.621766173 | S25: 0.7506740617 | T25: -0.04697643403
E26: -0.1016774753 | F26: 1.184494203 | G26: -6.656797722 | H26: 23.85199479 | I26: -60.66244754 | J26: 115.4868118 | K26: -169.3655073 | L26: 194.2331548 | M26: -175.1998834 | N26: 124.0614067 | O26: -68.30169044 | P26: 28.67756657 | Q26: -8.880552382 | R26: 1.913351641 | S26: -0.2563088021 | T26: 0.01608447661
E27: 0.01831481879 | F27: -0.2271119624 | G27: 1.339778917 | H27: -4.980277744 | I27: 13.02121109 | J27: -25.31340078 | K27: 37.72554675 | L27: -43.81531661 | M27: 39.92449539 | N27: -28.50619782 | O27: 15.80235205 | P27: -6.673450374 | Q27: 2.076811219 | R27: -0.4493722171 | S27: 0.06042139876 | T27: -0.003804120458
E28: -0.002445130567 | F28: 0.03174020068 | G28: -0.1944255692 | H28: 0.745102673 | I28: -1.996417283 | J28: 3.958128072 | K28: -5.99333725 | L28: 7.051467076 | M28: -6.494266434 | N28: 4.678468031 | O28: -2.613129607 | P28: 1.110680214 | Q28: -0.3475784094 | R28: 0.0755732658 | S28: -0.01020476633 | T28: 0.0006449173941
E29: 0.0002448996904 | F29: -0.003291168584 | G29: 0.02077102089 | H29: -0.08165137426 | I29: 0.2235305971 | J29: -0.4512789566 | K29: 0.6938363282 | L29: -0.8269453307 | M29: 0.7700102318 | N29: -0.559954612 | O29: 0.3153054524 | P29: -0.1349645499 | Q29: 0.04249739393 | R29: -0.009290498119 | S29: 0.001260575217 | T29: -8.000911672e-05
E30: -1.846171397e-05 | F30: 0.0002548840469 | G30: -0.001647812097 | H30: 0.006617314497 | I30: -0.01845953223 | J30: 0.03788720084 | K30: -0.05909833111 | L30: 0.07133158892 | M30: -0.06715970025 | N30: 0.04931598614 | O30: -0.02800844207 | P30: 0.0120801627 | Q30: -0.003829536637 | R30: 0.0008422509369 | S30: -0.0001149004047 | T30: 7.328433246e-06
E31: 1.041791835e-06 | F31: -1.469439853e-05 | G31: 9.688898274e-05 | H31: -0.0003961687346 | I31: 0.001123447163 | J31: -0.002340434536 | K31: 0.003700268109 | L31: -0.004520889482 | M31: 0.004303433389 | N31: -0.003191458795 | O31: 0.001828796916 | P31: -0.0007951522355 | Q31: 0.0002539177691 | R31: -5.621657716e-05 | S31: 7.715448927e-06 | T31: -4.948097279e-07
E32: -4.331706916e-08 | F32: 6.216498979e-07 | G32: -4.166367438e-06 | H32: 1.729915091e-05 | I32: -4.976620384e-05 | J32: 0.0001050749804 | K32: -0.0001682102388 | L32: 0.0002079075556 | M32: -0.0002000403309 | N32: 0.0001498294863 | O32: -8.664643843e-05 | P32: 3.799333273e-05 | Q32: -1.222756777e-05 | R32: 2.72673064e-06 | S32: -3.767324085e-07 | T32: 2.431016629e-08
E33: 1.287234611e-09 | F33: -1.87373036e-08 | G33: 1.273074348e-07 | H33: -5.355776799e-07 | I33: 1.560255512e-06 | J33: -3.334134741e-06 | K33: 5.399040543e-06 | L33: -6.746410018e-06 | M33: 6.55870625e-06 | N33: -4.960888077e-06 | O33: 2.89562826e-06 | P33: -1.28086801e-06 | Q33: 4.156470806e-07 | R33: -9.341277575e-08 | S33: 1.300103589e-08 | T33: -8.447454303e-10
E34: -2.585470171e-11 | F34: 3.808066446e-10 | G34: -2.61737459e-09 | H34: 1.113635424e-08 | I34: -3.280298367e-08 | J34: 7.08567913e-08 | K34: -1.159510324e-07 | L34: 1.463743893e-07 | M34: -1.437194524e-07 | N34: 1.097561795e-07 | O34: -6.466193783e-08 | P34: 2.88608037e-08 | Q34: -9.446848259e-09 | R34: 2.140847162e-09 | S34: -3.003539413e-10 | T34: 1.966603032e-11
E35: 3.143427353e-13 | F35: -4.67584694e-12 | G35: 3.245587112e-11 | H35: -1.394501969e-10 | I35: 4.147748687e-10 | J35: -9.04638145e-10 | K35: 1.494619331e-09 | L35: -1.904796578e-09 | M35: 1.887939764e-09 | N35: -1.455286761e-09 | O35: 8.653055689e-10 | P35: -3.897450416e-10 | Q35: 1.287231247e-10 | R35: -2.94302854e-11 | S35: 4.16503351e-12 | T35: -2.75049371e-13
E36: -1.746347671e-15 | F36: 2.619520858e-14 | G36: -1.833664212e-13 | H36: 7.945876815e-13 | I36: -2.383762678e-12 | J36: 5.244277212e-12 | K36: -8.740461071e-12 | L36: 1.123773465e-11 | M36: -1.123773382e-11 | N36: 8.740459122e-12 | O36: -5.244275228e-12 | P36: 2.383761382e-12 | Q36: -7.945871065e-13 | R36: 1.833662521e-13 | S36: -2.619517859e-14 | T36: 1.746345231e-15
D38: SUM
C39: a0 | D39: =SUM(E39:T39) -> 1.3 | E39: 1.3 | F39: 0 | G39: 0 | H39: 0 | I39: 0 | J39: 0 | K39: 0 | L39: 0 | M39: 0 | N39: 0 | O39: 0 | P39: 0 | Q39: 0 | R39: 0 | S39: 0 | T39: 0
C40: a1 | D40: =SUM(E40:T40) -> -291.5886484 | E40: -2.875798907 | F40: 15.0000066 | G40: -64.75004789 | H40: 252.7780141 | I40: -568.7505872 | J40: 1001.001053 | K40: -1112.223341 | L40: 919.286553 | M40: -1072.500832 | N40: 556.1114455 | O40: -300.3001247 | P40: 124.0909349 | Q40: -50.55555422 | R40: 13.46153502 | S40: -1.428570724 | T40: 0.06666661577
C41: a2 | D41: =SUM(E41:T41) -> 625.7720176 | E41: 2.724281853 | F41: -23.1823028 | G41: 121.6536444 | H41: -503.0106447 | I41: 1163.371259 | J41: -2080.900078 | K41: 2336.827097 | L41: -1946.050749 | M41: 2283.160054 | N41: -1189.00973 | O41: 644.2895678 | P41: -266.9873655 | Q41: 109.0279359 | R41: -29.08862803 | S41: 3.092188538 | T41: -0.1445137352
C42: a3 | D42: -568.7824652 | E42: -1.489576313 | F42: 15.97916161 | G42: -95.13903816 | H42: 417.9416063 | I42: -997.97873 | J42: 1820.244669 | K42: -2071.127865 | L42: 1741.118704 | M42: -2057.269281 | N42: 1077.312254 | O42: -586.3562308 | P42: 243.863874 | Q42: -99.88709606 | R42: 26.71826351 | S42: -2.846465186 | T42: 0.1332837039
C43: a4 | D43: 294.9693481 | E43: 0.5315416238 | F43: -6.534647812 | G43: 42.47936675 | H43: -196.7640117 | I43: 485.3600096 | J43: -904.2746408 | K43: 1044.28998 | L43: -887.5222454 | M43: 1057.460903 | N43: -557.4063662 | O43: 305.0014329 | P43: -127.4070511 | Q43: 52.37860909 | R43: -14.05441543 | S43: 1.501348123 | T43: -0.07046465105
C44: a5 | D44: -98.57095896 | E44: -0.1321807179 | F44: 1.776741304 | G44: -12.31507579 | H44: 59.62998697 | I44: -151.6561188 | J44: 288.7170295 | K44: -338.7310145 | L44: 291.3497323 | M44: -350.3997668 | N44: 186.0921101 | O44: -102.4525357 | P44: 43.01634985 | Q44: -17.76110476 | R44: 4.783379103 | S44: -0.5126176042 | T44: 0.02412671492
C45: a6 | D45: 22.63705738 | E45: 0.02380926443 | F45: -0.3406679436 | G45: 2.478590996 | H45: -12.45069436 | I45: 32.55302772 | J45: -63.28350195 | K45: 75.45109349 | L45: -65.72297492 | M45: 79.84899078 | N45: -42.75929673 | O45: 23.70352807 | P45: -10.01017556 | Q45: 4.153622439 | R45: -1.123430543 | S45: 0.1208427975 | T45: -0.005706180687
C46: a7 | D46: -3.707866624 | E46: -0.003178669737 | F46: 0.04761030103 | G46: -0.3596873031 | H46: 1.862756683 | I46: -4.991043206 | J46: 9.895320181 | K46: -11.9866745 | L46: 10.57720061 | M46: -12.98853287 | N46: 7.017702046 | O46: -3.919694411 | P46: 1.66602032 | Q46: -0.6951568187 | R46: 0.1889331645 | S46: -0.02040953265 | T46: 0.0009673760911
C47: a8 | D47: 0.44233291 | E47: 0.0003183695975 | F47: -0.004936752876 | G47: 0.03842638865 | H47: -0.2041284356 | I47: 0.5588264926 | J47: -1.128197392 | K47: 1.387672656 | L47: -1.240417996 | M47: 1.540020464 | N47: -0.839931918 | O47: 0.4729581787 | P47: -0.2024468249 | Q47: 0.08499478786 | R47: -0.0232262453 | S47: 0.002521150433 | T47: -0.0001200136751
C48: a9 | D48: -0.03878704204 | E48: -2.400022817e-05 | F48: 0.0003823260704 | G48: -0.003048452379 | H48: 0.01654328624 | I48: -0.04614883057 | J48: 0.09471800211 | K48: -0.1181966622 | L48: 0.1069973834 | M48: -0.1343194005 | N48: 0.07397397921 | O48: -0.0420126631 | P48: 0.01812024405 | Q48: -0.007659073275 | R48: 0.002105627342 | S48: -0.0002298008094 | T48: 1.099264987e-05
C49: a10 | D49: 0.002496997458 | E49: 1.354329385e-06 | F49: -2.20415978e-05 | G49: 0.0001792446181 | H49: -0.0009904218366 | I49: 0.002808617906 | J49: -0.005851086341 | K49: 0.007400536218 | L49: -0.006781334222 | M49: 0.008606866778 | N49: -0.004787188193 | O49: 0.002743195374 | P49: -0.001192728353 | Q49: 0.0005078355382 | R49: -0.0001405414429 | S49: 1.543089785e-05 | T49: -7.422145918e-07
C50: a11 | D50: -0.000116542342 | E50: -5.631218991e-08 | F50: 9.324748469e-07 | G50: -7.707779761e-06 | H50: 4.324787727e-05 | I50: -0.0001244155096 | J50: 0.0002626874509 | K50: -0.0003364204776 | L50: 0.0003118613335 | M50: -0.0004000806617 | N50: 0.0002247442294 | O50: -0.0001299696577 | P50: 5.69899991e-05 | Q50: -2.445513555e-05 | R50: 6.816826599e-06 | S50: -7.53464817e-07 | T50: 3.646524943e-08
C51: a12 | D51: 3.834627925e-06 | E51: 1.673404994e-09 | F51: -2.810595541e-08 | G51: 2.355187544e-07 | H51: -1.3389442e-06 | I51: 3.900638779e-06 | J51: -8.335336851e-06 | K51: 1.079808109e-05 | L51: -1.011961503e-05 | M51: 1.31174125e-05 | N51: -7.441332115e-06 | O51: 4.34344239e-06 | P51: -1.921302016e-06 | Q51: 8.312941612e-07 | R51: -2.335319394e-07 | S51: 2.600207178e-08 | T51: -1.267118145e-09
C52: a13 | D52: -8.428874466e-08 | E52: -3.361111222e-11 | F52: 5.712099669e-10 | G52: -4.842142991e-09 | H52: 2.78408856e-08 | I52: -8.200745917e-08 | J52: 1.771419782e-07 | K52: -2.319020648e-07 | L52: 2.19561584e-07 | M52: -2.874389049e-07 | N52: 1.646342692e-07 | O52: -9.699290674e-08 | P52: 4.329120555e-08 | Q52: -1.889369652e-08 | R52: 5.352117905e-09 | S52: -6.007078825e-10 | T52: 2.949904548e-11
C53: a14 | D53: 1.110276555e-09 | E53: 4.086455559e-13 | F53: -7.01377041e-12 | G53: 6.004336157e-11 | H53: -3.486254923e-10 | I53: 1.036937172e-09 | J53: -2.261595362e-09 | K53: 2.989238662e-09 | L53: -2.857194868e-09 | M53: 3.775879528e-09 | N53: -2.182930142e-09 | O53: 1.297958353e-09 | P53: -5.846175623e-10 | Q53: 2.574462494e-10 | R53: -7.35757135e-11 | S53: 8.330067021e-12 | T53: -4.125740565e-13
C54: a15 | D54: -6.6248491e-12 | E54: -2.270251972e-15 | F54: 3.929281287e-14 | G54: -3.392278792e-13 | H54: 1.986469204e-12 | I54: -5.959406696e-12 | J54: 1.311069303e-11 | K54: -1.748092214e-11 | L54: 1.685660198e-11 | M54: -2.247546765e-11 | N54: 1.311068868e-11 | O54: -7.866412842e-12 | P54: 3.575642073e-12 | Q54: -1.589174213e-12 | R54: 4.584156301e-13 | S54: -5.239035717e-14 | T54: 2.619517847e-15
E56: 1.3 | F56: 1.5 | G56: 1.85 | H56: 2.5 | I56: 2.5 | J56: 2.5 | K56: 2 | L56: 1.5 | M56: 2 | N56: 1.5 | O56: 1.5 | P56: 1.5 | Q56: 2 | R56: 2.5 | S56: 2 | T56: 1.5
E57: 1.3 | F57: 1.5 | G57: 1.85 | H57: 2.5 | I57: 2.5 | J57: 2.5 | K57: 2 | L57: 1.5 | M57: 2 | N57: 1.5 | O57: 1.5 | P57: 1.5 | Q57: 2 | R57: 2.5 | S57: 2 | T57: 1.5
E58: 1.3 | F58: 1.5 | G58: 1.85 | H58: 2.5 | I58: 2.5 | J58: 2.5 | K58: 2 | L58: 1.5 | M58: 2 | N58: 1.5 | O58: 1.5 | P58: 1.5 | Q58: 2 | R58: 2.5 | S58: 2 | T58: 1.5
E59: 1.3 | F59: 1.5 | G59: 1.85 | H59: 2.5 | I59: 2.5 | J59: 2.5 | K59: 2 | L59: 1.5 | M59: 2 | N59: 1.5 | O59: 1.5 | P59: 1.5 | Q59: 2 | R59: 2.5 | S59: 2 | T59: 1.5
E60: 1.3 | F60: 1.5 | G60: 1.85 | H60: 2.5 | I60: 2.5 | J60: 2.5 | K60: 2 | L60: 1.5 | M60: 2 | N60: 1.5 | O60: 1.5 | P60: 1.5 | Q60: 2 | R60: 2.5 | S60: 2 | T60: 1.5
E61: 1.3 | F61: 1.5 | G61: 1.85 | H61: 2.5 | I61: 2.5 | J61: 2.5 | K61: 2 | L61: 1.5 | M61: 2 | N61: 1.5 | O61: 1.5 | P61: 1.5 | Q61: 2 | R61: 2.5 | S61: 2 | T61: 1.5
E62: 1.3 | F62: 1.5 | G62: 1.85 | H62: 2.5 | I62: 2.5 | J62: 2.5 | K62: 2 | L62: 1.5 | M62: 2 | N62: 1.5 | O62: 1.5 | P62: 1.5 | Q62: 2 | R62: 2.5 | S62: 2 | T62: 1.5
E63: 1.3 | F63: 1.5 | G63: 1.85 | H63: 2.5 | I63: 2.5 | J63: 2.5 | K63: 2 | L63: 1.5 | M63: 2 | N63: 1.5 | O63: 1.5 | P63: 1.5 | Q63: 2 | R63: 2.5 | S63: 2 | T63: 1.5
E64: 1.3 | F64: 1.5 | G64: 1.85 | H64: 2.5 | I64: 2.5 | J64: 2.5 | K64: 2 | L64: 1.5 | M64: 2 | N64: 1.5 | O64: 1.5 | P64: 1.5 | Q64: 2 | R64: 2.5 | S64: 2 | T64: 1.5
E65: 1.3 | F65: 1.5 | G65: 1.85 | H65: 2.5 | I65: 2.5 | J65: 2.5 | K65: 2 | L65: 1.5 | M65: 2 | N65: 1.5 | O65: 1.5 | P65: 1.5 | Q65: 2 | R65: 2.5 | S65: 2 | T65: 1.5
E66: 1.3 | F66: 1.5 | G66: 1.85 | H66: 2.5 | I66: 2.5 | J66: 2.5 | K66: 2 | L66: 1.5 | M66: 2 | N66: 1.5 | O66: 1.5 | P66: 1.5 | Q66: 2 | R66: 2.5 | S66: 2 | T66: 1.5
E67: 1.3 | F67: 1.5 | G67: 1.85 | H67: 2.5 | I67: 2.5 | J67: 2.5 | K67: 2 | L67: 1.5 | M67: 2 | N67: 1.5 | O67: 1.5 | P67: 1.5 | Q67: 2 | R67: 2.5 | S67: 2 | T67: 1.5
E68: 1.3 | F68: 1.5 | G68: 1.85 | H68: 2.5 | I68: 2.5 | J68: 2.5 | K68: 2 | L68: 1.5 | M68: 2 | N68: 1.5 | O68: 1.5 | P68: 1.5 | Q68: 2 | R68: 2.5 | S68: 2 | T68: 1.5
E69: 1.3 | F69: 1.5 | G69: 1.85 | H69: 2.5 | I69: 2.5 | J69: 2.5 | K69: 2 | L69: 1.5 | M69: 2 | N69: 1.5 | O69: 1.5 | P69: 1.5 | Q69: 2 | R69: 2.5 | S69: 2 | T69: 1.5
E70: 1.3 | F70: 1.5 | G70: 1.85 | H70: 2.5 | I70: 2.5 | J70: 2.5 | K70: 2 | L70: 1.5 | M70: 2 | N70: 1.5 | O70: 1.5 | P70: 1.5 | Q70: 2 | R70: 2.5 | S70: 2 | T70: 1.5
E71: 1.3 | F71: 1.5 | G71: 1.85 | H71: 2.5 | I71: 2.5 | J71: 2.5 | K71: 2 | L71: 1.5 | M71: 2 | N71: 1.5 | O71: 1.5 | P71: 1.5 | Q71: 2 | R71: 2.5 | S71: 2 | T71: 1.5
E74: a0 | F74: a1 | G74: a2 | H74: a3 | I74: a4 | J74: a5 | K74: a6 | L74: a7 | M74: a8 | N74: a9 | O74: a10 | P74: a11 | Q74: a12 | R74: a13 | S74: a14 | T74: a15
B75: x | C75: y | E75: 1.3 | F75: -291.5886484 | G75: 625.7720176 | H75: -568.7824652 | I75: 294.9693481 | J75: -98.57095896 | K75: 22.63705738 | L75: -3.707866624 | M75: 0.44233291 | N75: -0.03878704204 | O75: 0.002496997458 | P75: -0.000116542342 | Q75: 3.834627925e-06 | R75: -8.428874466e-08 | S75: 1.110276555e-09 | T75: -6.6248491e-12
A76: 0 | B76: 0 | C76: 1.3 | D76: =$E$75+$F$75*B76+$G$75*B76^2+$H$75*B76^3+$I$75*B76^4+$J$75*B76^5+$K$75*B76^6+$L$75*B76^7+$M$75*B76^8+$N$75*B76^9+$O$75*B76^10+$P$75*B76^11+$Q$75*B76^12+$R$75*B76^13+$S$75*B76^14+$T$75*B76^15 -> 1.3
B77: 1 | D77: =$E$75+$F$75*B77+$G$75*B77^2+$H$75*B77^3+$I$75*B77^4+$J$75*B77^5+$K$75*B77^6+$L$75*B77^7+$M$75*B77^8+$N$75*B77^9+$O$75*B77^10+$P$75*B77^11+$Q$75*B77^12+$R$75*B77^13+$S$75*B77^14+$T$75*B77^15 -> -17.56558606
A78: 1 | B78: 1.5 | C78: 1.5
B79: 2 | D79: 6.06621943
A80: 2 | B80: 3 | C80: 1.85 | D80: 1.850006618
B81: 4 | D81: 1.796941082
A82: 3 | B82: 4.5 | C82: 2.5
B83: 5 | D83: 2.80603314
A84: 4 | B84: 6 | C84: 2.5 | D84: 2.500016409
B85: 7 | D85: 2.417555229
A86: 5 | B86: 7.5 | C86: 2.5
B87: 8 | D87: 2.488405369
A88: 6 | B88: 9 | C88: 2 | D88: 2.000030385
B89: 10 | D89: 1.495838601
A90: 7 | B90: 10.5 | C90: 1.5
B91: 11 | D91: 1.664878678
A92: 8 | B92: 12 | C92: 2 | D92: 2.000036639
B93: 13 | D93: 1.752049219
A94: 9 | B94: 13.5 | C94: 1.5
B95: 14 | D95: 1.335075672
A96: 10 | B96: 15 | C96: 1.5 | D96: 1.50002935
B97: 16 | D97: 1.685617036
A98: 11 | B98: 16.5 | C98: 1.5
B99: 17 | D99: 1.271281678
A100: 12 | B100: 18 | C100: 2 | D100: 2.00002151
B101: 19 | D101: 3.710832909
A102: 13 | B102: 19.5 | C102: 2.5
B103: 20 | D103: -1.021636307
A104: 14 | B104: 21 | C104: 2 | D104: 2.000033736
B105: 22 | D105: 59.57433891
A106: 15 | B106: 22.5 | C106: 1.5

Sheet ラグランジュ補間
A1: ラグランジュの補間法
B3: 関数表点数 | D3: 16 | F3: 補間点数 | G3: 31
B5: 補間する関数表 | F5: 補間結果
C6: x | D6: y | F6: ｘ | G6: ｆ（ｘ）
B7: 0 | C7: 0 | D7: 1.3 | F7: 0 | H7: 1.3
B8: 1 | C8: 1.5 | D8: 1.5 | F8: 1 | H8: -17.56
B9: 2 | C9: 3 | D9: 1.85 | F9: 1.5
B10: 3 | C10: 4.5 | D10: 2.5 | F10: 2 | H10: =G10 -> 0
B11: 4 | C11: 6 | D11: 2.5 | F11: 3 | H11: =G11 -> 0
B12: 5 | C12: 7.5 | D12: 2.5 | F12: 4 | H12: 0
B13: 6 | C13: 9 | D13: 2 | F13: 4.5
B14: 7 | C14: 10.5 | D14: 1.5 | F14: 5 | H14: 0
B15: 8 | C15: 12 | D15: 2 | F15: 6 | H15: 0
B16: 9 | C16: 13.5 | D16: 1.5 | F16: 7 | H16: 0
B17: 10 | C17: 15 | D17: 1.5 | F17: 7.5
B18: 11 | C18: 16.5 | D18: 1.5 | F18: 8 | H18: 0
B19: 12 | C19: 18 | D19: 2 | F19: 9 | H19: 0
B20: 13 | C20: 19.5 | D20: 2.5 | F20: 10 | H20: 0
B21: 14 | C21: 21 | D21: 2 | F21: 10.5
B22: 15 | C22: 22.5 | D22: 1.5 | F22: 11 | H22: 0
F23: 12 | H23: 0
F24: 13 | H24: 0
F25: 13.5
F26: 14 | H26: 0
F27: 15 | H27: 0
F28: 16 | H28: 0
F29: 16.5
F30: 17 | H30: 0
F31: 18 | H31: 0
F32: 19 | H32: 0
F33: 19.5
F34: 20 | H34: -1.02
F35: 21 | H35: 0
F36: 22 | H36: 0
F37: 22.5

Sheet スプライン
X1: マトリックス | AJ1: 11 | AK1: 12 | AL1: 13 | AM1: 14
A2: No | B2: x | C2: y | E2: hj | F2: xj+1-xj | X2: 1 | Y2: 0 | Z2: 0 | AA2: 0 | AB2: 0 | AC2: 0 | AD2: 0 | AE2: 0 | AF2: 0 | AG2: 0 | AH2: 0 | AI2: 0 | AJ2: 0 | AK2: 0 | AL2: 0 | AM2: 0
A3: 0 | B3: 0 | C3: 1.3 | E3: h0 | F3: =B4-B3 -> 1.5 | H3: a0 | I3: =C3 -> 1.3 | K3: b0 | L3: =((I4-I3)/F3)-F3*(2*O3+O4)/3 -> 0.1296082464 | N3: c0 | O3: =$U$3*X22+$U$4*Y22+$U$5*Z22+$U$6*AA22+$U$7*AB22+$U$8*AC22+$U$9*AD22+$U$10*AE22+$U$11*AF22+$U$12*AG22+$U$13*AH22+$U$14*AI22+$U$15*AJ22+$U$16*AK22 -> 3.330669074e-17 | Q3: d0 | R3: =(O4-O3)/3/F3 -> 0.001655594197 | T3: u0 | U3: 0 | X3: =F3 -> 1.5 | Y3: =2*(F4+F3) -> 6 | Z3: =F4 -> 1.5 | AA3: 0 | AB3: 0 | AC3: 0 | AD3: 0 | AE3: 0 | AF3: 0 | AG3: 0 | AH3: 0 | AI3: 0 | AJ3: 0 | AK3: 0 | AL3: 0 | AM3: 0
A4: 1 | B4: 1.5 | C4: 1.5 | E4: h1 | F4: =B5-B4 -> 1.5 | H4: a1 | I4: =C4 -> 1.5 | K4: b1 | L4: =((I5-I4)/F4)-F4*(2*O4+O5)/3 -> 0.1407835072 | N4: c1 | O4: =$U$3*X23+$U$4*Y23+$U$5*Z23+$U$6*AA23+$U$7*AB23+$U$8*AC23+$U$9*AD23+$U$10*AE23+$U$11*AF23+$U$12*AG23+$U$13*AH23+$U$14*AI23+$U$15*AJ23+$U$16*AK23 -> 0.007450173885 | Q4: d1 | R4: =(O5-O4)/3/F4 -> 0.03616647346 | T4: u1 | U4: =(3*(I5-I4)/F4)-(3*(I4-I3)/F3) -> 0.3 | X4: 0 | Y4: =F4 -> 1.5 | Z4: =2*(F5+F4) -> 6 | AA4: =F5 -> 1.5 | AB4: 0 | AC4: 0 | AD4: 0 | AE4: 0 | AF4: 0 | AG4: 0 | AH4: 0 | AI4: 0 | AJ4: 0 | AK4: 0 | AL4: 0 | AM4: 0
A5: 2 | B5: 3 | C5: 1.85 | E5: h2 | F5: 1.5 | H5: a2 | I5: 1.85 | K5: b2 | L5: 0.4072577247 | N5: c2 | O5: 0.1701993045 | Q5: d2 | R5: -0.1018770436 | T5: u2 | U5: 0.6 | X5: 0 | Y5: 0 | Z5: =F5 -> 1.5 | AA5: =2*(F6+F5) -> 6 | AB5: =F6 -> 1.5 | AC5: 0 | AD5: 0 | AE5: 0 | AF5: 0 | AG5: 0 | AH5: 0 | AI5: 0 | AJ5: 0 | AK5: 0 | AL5: 0 | AM5: 0
A6: 3 | B6: 4.5 | C6: 2.5 | E6: h3 | F6: 1.5 | H6: a3 | I6: 2.5 | K6: b3 | L6: 0.2301855938 | N6: c3 | O6: -0.2882473917 | Q6: d3 | R6: 0.08986021944 | T6: u3 | U6: -1.3 | X6: 0 | Y6: 0 | Z6: 0 | AA6: =F6 -> 1.5 | AB6: =2*(F7+F6) -> 6 | AC6: =F7 -> 1.5 | AD6: 0 | AE6: 0 | AF6: 0 | AG6: 0 | AH6: 0 | AI6: 0 | AJ6: 0 | AK6: 0 | AL6: 0 | AM6: 0
A7: 4 | B7: 6 | C7: 2.5 | E7: h4 | F7: 1.5 | H7: a4 | I7: 2.5 | K7: b4 | L7: -0.0280001001 | N7: c4 | O7: 0.1161235958 | Q7: d4 | R7: -0.06497124157 | T7: u4 | U7: 0 | X7: 0 | Y7: 0 | Z7: 0 | AA7: 0 | AB7: =F7 -> 1.5 | AC7: =2*(F8+F7) -> 6 | AD7: =F8 -> 1.5 | AE7: 0 | AF7: 0 | AG7: 0 | AH7: 0 | AI7: 0 | AJ7: 0 | AK7: 0 | AL7: 0 | AM7: 0
A8: 5 | B8: 7.5 | C8: 2.5 | E8: h5 | F8: 1.5 | H8: a5 | I8: 2.5 | K8: b5 | L8: -0.1181851934 | N8: c5 | O8: -0.1762469913 | Q8: d5 | R8: 0.02187659869 | T8: u5 | U8: -1 | X8: 0 | Y8: 0 | Z8: 0 | AA8: 0 | AB8: 0 | AC8: =F8 -> 1.5 | AD8: =2*(F9+F8) -> 6 | AE8: =F9 -> 1.5 | AF8: 0 | AG8: 0 | AH8: 0 | AI8: 0 | AJ8: 0 | AK8: 0 | AL8: 0 | AM8: 0
A9: 6 | B9: 9 | C9: 2 | E9: h6 | F9: 1.5 | H9: a6 | I9: 2 | K9: b6 | L9: -0.4992591262 | N9: c6 | O9: -0.07780229721 | Q9: d6 | R9: 0.125612995 | T9: u6 | U9: 0 | X9: 0 | Y9: 0 | Z9: 0 | AA9: 0 | AB9: 0 | AC9: 0 | AD9: =F9 -> 1.5 | AE9: =2*(F10+F9) -> 6 | AF9: =F10 -> 1.5 | AG9: 0 | AH9: 0 | AI9: 0 | AJ9: 0 | AK9: 0 | AL9: 0 | AM9: 0
A10: 7 | B10: 10.5 | C10: 1.5 | E10: h7 | F10: 1.5 | H10: a7 | I10: 1.5 | K10: b7 | L10: 0.1152216982 | N10: c7 | O10: 0.4874561801 | Q10: d7 | R10: -0.2280322823 | T10: u7 | U10: 2 | X10: 0 | Y10: 0 | Z10: 0 | AA10: 0 | AB10: 0 | AC10: 0 | AD10: 0 | AE10: =F10 -> 1.5 | AF10: =2*(F11+F10) -> 6 | AG10: =F11 -> 1.5 | AH10: 0 | AI10: 0 | AJ10: 0 | AK10: 0 | AL10: 0 | AM10: 0
A11: 8 | B11: 12 | C11: 2 | E11: h8 | F11: 1.5 | H11: a8 | I11: 2 | K11: b8 | L11: 0.03837233341 | N11: c8 | O11: -0.53868909 | Q11: d8 | R11: 0.1939235414 | T11: u8 | U11: -2 | X11: 0 | Y11: 0 | Z11: 0 | AA11: 0 | AB11: 0 | AC11: 0 | AD11: 0 | AE11: 0 | AF11: =F11 -> 1.5 | AG11: =2*(F12+F11) -> 6 | AH11: =F12 -> 1.5 | AI11: 0 | AJ11: 0 | AK11: 0 | AL11: 0 | AM11: 0
A12: 9 | B12: 13.5 | C12: 1.5 | E12: h9 | F12: 1.5 | H12: a9 | I12: 1.5 | K12: b9 | L12: -0.2687110318 | N12: c9 | O12: 0.3339668465 | Q12: d9 | R12: -0.1032174391 | T12: u9 | U12: 1 | X12: 0 | Y12: 0 | Z12: 0 | AA12: 0 | AB12: 0 | AC12: 0 | AD12: 0 | AE12: 0 | AF12: 0 | AG12: =F12 -> 1.5 | AH12: =2*(F13+F12) -> 6 | AI12: =F13 -> 1.5 | AJ12: 0 | AK12: 0 | AL12: 0 | AM12: 0
A13: 10 | B13: 15 | C13: 1.5 | E13: h10 | F13: 1.5 | H13: a10 | I13: 1.5 | K13: b10 | L13: 0.03647179387 | N13: c10 | O13: -0.1305116294 | Q13: d10 | R13: 0.07079806676 | T13: u10 | U13: 0 | X13: 0 | Y13: 0 | Z13: 0 | AA13: 0 | AB13: 0 | AC13: 0 | AD13: 0 | AE13: 0 | AF13: 0 | AG13: 0 | AH13: =F13 -> 1.5 | AI13: =2*(F14+F13) -> 6 | AJ13: =F14 -> 1.5 | AK13: 0 | AL13: 0 | AM13: 0
A14: 11 | B14: 16.5 | C14: 1.5 | E14: h11 | F14: 1.5 | H14: a11 | I14: 1.5 | K14: b11 | L14: 0.1228238563 | N14: c11 | O14: =$U$3*X33+$U$4*Y33+$U$5*Z33+$U$6*AA33+$U$7*AB33+$U$8*AC33+$U$9*AD33+$U$10*AE33+$U$11*AF33+$U$12*AG33+$U$13*AH33+$U$14*AI33+$U$15*AJ33+$U$16*AK33 -> 0.188079671 | Q14: d11 | R14: -0.0318266798 | T14: u11 | U14: 1 | X14: 0 | Y14: 0 | Z14: 0 | AA14: 0 | AB14: 0 | AC14: 0 | AD14: 0 | AE14: 0 | AF14: 0 | AG14: 0 | AH14: 0 | AI14: =F14 -> 1.5 | AJ14: =2*(F15+F14) -> 6 | AK14: =F15 -> 1.5 | AL14: 0 | AM14: 0
A15: 12 | B15: 18 | C15: 2 | E15: h12 | F15: 1.5 | H15: a12 | I15: 2 | K15: b12 | L15: 0.4722327808 | N15: c12 | O15: 0.04485961193 | Q15: d12 | R15: -0.0916394957 | T15: u12 | U15: 0 | X15: 0 | Y15: 0 | Z15: 0 | AA15: 0 | AB15: 0 | AC15: 0 | AD15: 0 | AE15: 0 | AF15: 0 | AG15: 0 | AH15: 0 | AI15: 0 | AJ15: =F15 -> 1.5 | AK15: =2*(F16+F15) -> 6 | AL15: =F16 -> 1.5 | AM15: 0
A16: 13 | B16: 19.5 | C16: 2.5 | E16: h13 | F16: =B17-B16 -> 1.5 | H16: a13 | I16: 2.5 | K16: b13 | L16: -0.01175497944 | N16: c13 | O16: -0.3675181187 | Q16: d13 | R16: 0.1020883663 | T16: u13 | U16: -2 | X16: 0 | Y16: 0 | Z16: 0 | AA16: 0 | AB16: 0 | AC16: 0 | AD16: 0 | AE16: 0 | AF16: 0 | AG16: 0 | AH16: 0 | AI16: 0 | AJ16: 0 | AK16: =F16 -> 1.5 | AL16: =2*(F17+F16) -> 6 | AM16: =F17 -> 1.5
A17: 14 | B17: 21 | C17: 2 | E17: h14 | F17: =B18-B17 -> 1.5 | H17: a14 | I17: 2 | K17: b14 | L17: -0.425212863 | N17: c14 | O17: 0.09187952968 | Q17: d14 | R17: -0.02041767326 | T17: u14 | U17: 0 | X17: 0 | Y17: 0 | Z17: 0 | AA17: 0 | AB17: 0 | AC17: 0 | AD17: 0 | AE17: 0 | AF17: 0 | AG17: 0 | AH17: 0 | AI17: 0 | AJ17: 0 | AK17: 0 | AL17: 0 | AM17: 1
A18: 15 | B18: 22.5 | C18: 1.5 | E18: h15 | F18: -22.5 | H18: a15 | I18: 1.5 | K18: b15 | L18: 0.06666666667 | N18: c15 | O18: =$U$3*X37+$U$4*Y37+$U$5*Z37+$U$6*AA37+$U$7*AB37+$U$8*AC37+$U$9*AD37+$U$10*AE37+$U$11*AF37+$U$12*AG37+$U$13*AH37+$U$14*AI37+$U$15*AJ37+$U$16*AK37 -> 0 | Q18: d15 | R18: 0 | T18: u15 | U18: 1.2
X21: 逆マトリックス
B22: x | C22: y | X22: =MINVERSE(X2:AM17) -> 1 | Y22: 1.110223025e-16 | Z22: 0 | AA22: 0 | AB22: 0 | AC22: 0 | AD22: 0 | AE22: 0 | AF22: 0 | AG22: 0 | AH22: 0 | AI22: 0 | AJ22: 0 | AK22: 0 | AL22: 0 | AM22: 0
B23: 0 | C23: 1.3 | D23: 1.3 | X23: -0.2679491924 | Y23: 0.178632795 | Z23: -0.04786451315 | AA23: 0.01282525764 | AB23: -0.003436517429 | AC23: 0.0009208120698 | AD23: -0.0002467308505 | AE23: 6.611133209e-05 | AF23: -1.771447788e-05 | AG23: 4.746579439e-06 | AH23: -1.271839875e-06 | AI23: 3.407800623e-07 | AJ23: -9.128037383e-08 | AK23: 2.434143302e-08 | AL23: -6.085358255e-09 | AM23: 9.128037383e-09
B24: 1 | D24: =I3+L3*(B24-B23)+O3*(B24-B23)^2+R3*(B24-B23)^3 -> 1.431263841 | X24: 0.07179676972 | Y24: -0.04786451315 | Z24: 0.1914580526 | AA24: -0.05130103058 | AB24: 0.01374606971 | AC24: -0.003683248279 | AD24: 0.0009869234018 | AE24: -0.0002644453283 | AF24: 7.085791152e-05 | AG24: -1.898631776e-05 | AH24: 5.087359501e-06 | AI24: -1.363120249e-06 | AJ24: 3.651214953e-07 | AK24: -9.736573208e-08 | AL24: 2.434143302e-08 | AM24: -3.651214953e-08
B25: 1.5 | C25: 1.5 | X25: -0.01923788647 | Y25: 0.01282525764 | Z25: -0.05130103058 | AA25: 0.1923788647 | AB25: -0.05154776143 | AC25: 0.01381218105 | AD25: -0.003700962757 | AE25: 0.0009916699813 | AF25: -0.0002657171682 | AG25: 7.119869159e-05 | AH25: -1.907759813e-05 | AI25: 5.111700934e-06 | AJ25: -1.369205607e-06 | AK25: 3.651214953e-07 | AL25: -9.128037383e-08 | AM25: 1.369205607e-07
B26: 2 | D26: =I4+L4*(B26-B25)+O4*(B26-B25)^2+R4*(B26-B25)^3 -> 1.576775106 | X26: 0.005154776143 | Y26: -0.003436517429 | Z26: 0.01374606971 | AA26: -0.05154776143 | AB26: 0.192444976 | AC26: -0.05156547591 | AD26: 0.01381692763 | AE26: -0.003702234597 | AF26: 0.0009920107613 | AG26: -0.0002658084486 | AH26: 7.122303302e-05 | AI26: -1.908368349e-05 | AJ26: 5.111700934e-06 | AK26: -1.363120249e-06 | AL26: 3.407800623e-07 | AM26: -5.111700934e-07
B27: 3 | C27: 1.85 | D27: 1.85 | X27: -0.001381218105 | Y27: 0.0009208120698 | Z27: -0.003683248279 | AA27: 0.01381218105 | AB27: -0.05156547591 | AC27: 0.1924497226 | AD27: -0.05156674775 | AE27: 0.01381726841 | AF27: -0.003702325877 | AG27: 0.0009920351028 | AH27: -0.000265814534 | AI27: 7.122303302e-05 | AJ27: -1.907759813e-05 | AK27: 5.087359501e-06 | AL27: -1.271839875e-06 | AM27: 1.907759813e-06
B28: 4 | D28: =I5+L5*(B28-B27)+O5*(B28-B27)^2+R5*(B28-B27)^3 -> 2.325579986 | X28: 0.0003700962757 | Y28: -0.0002467308505 | Z28: 0.0009869234018 | AA28: -0.003700962757 | AB28: 0.01381692763 | AC28: -0.05156674775 | AD28: 0.1924500634 | AE28: -0.05156683903 | AF28: 0.01381729275 | AG28: -0.003702331963 | AH28: 0.0009920351028 | AI28: -0.0002658084486 | AJ28: 7.119869159e-05 | AK28: -1.898631776e-05 | AL28: 4.746579439e-06 | AM28: -7.119869159e-06
B29: 4.5 | C29: 2.5 | X29: -9.916699813e-05 | Y29: 6.611133209e-05 | Z29: -0.0002644453283 | AA29: 0.0009916699813 | AB29: -0.003702234597 | AC29: 0.01381726841 | AD29: -0.05156683903 | AE29: 0.1924500877 | AF29: -0.05156684511 | AG29: 0.01381729275 | AH29: -0.003702325877 | AI29: 0.0009920107613 | AJ29: -0.0002657171682 | AK29: 7.085791152e-05 | AL29: -1.771447788e-05 | AM29: 2.657171682e-05
B30: 5 | D30: =I6+L6*(B30-B29)+O6*(B30-B29)^2+R6*(B30-B29)^3 -> 2.554263476 | X30: 2.657171682e-05 | Y30: -1.771447788e-05 | Z30: 7.085791152e-05 | AA30: -0.0002657171682 | AB30: 0.0009920107613 | AC30: -0.003702325877 | AD30: 0.01381729275 | AE30: -0.05156684511 | AF30: 0.1924500877 | AG30: -0.05156683903 | AH30: 0.01381726841 | AI30: -0.003702234597 | AJ30: 0.0009916699813 | AK30: -0.0002644453283 | AL30: 6.611133209e-05 | AM30: -9.916699813e-05
B31: 6 | C31: 2.5 | D31: 2.5 | X31: -7.119869159e-06 | Y31: 4.746579439e-06 | Z31: -1.898631776e-05 | AA31: 7.119869159e-05 | AB31: -0.0002658084486 | AC31: 0.0009920351028 | AD31: -0.003702331963 | AE31: 0.01381729275 | AF31: -0.05156683903 | AG31: 0.1924500634 | AH31: -0.05156674775 | AI31: 0.01381692763 | AJ31: -0.003700962757 | AK31: 0.0009869234018 | AL31: -0.0002467308505 | AM31: 0.0003700962757
B32: 7 | D32: =I7+L7*(B32-B31)+O7*(B32-B31)^2+R7*(B32-B31)^3 -> 2.523152254 | X32: 1.907759813e-06 | Y32: -1.271839875e-06 | Z32: 5.087359501e-06 | AA32: -1.907759813e-05 | AB32: 7.122303302e-05 | AC32: -0.000265814534 | AD32: 0.0009920351028 | AE32: -0.003702325877 | AF32: 0.01381726841 | AG32: -0.05156674775 | AH32: 0.1924497226 | AI32: -0.05156547591 | AJ32: 0.01381218105 | AK32: -0.003683248279 | AL32: 0.0009208120698 | AM32: -0.001381218105
B33: 7.5 | C33: 2.5 | X33: -5.111700934e-07 | Y33: 3.407800623e-07 | Z33: -1.363120249e-06 | AA33: 5.111700934e-06 | AB33: -1.908368349e-05 | AC33: 7.122303302e-05 | AD33: -0.0002658084486 | AE33: 0.0009920107613 | AF33: -0.003702234597 | AG33: 0.01381692763 | AH33: -0.05156547591 | AI33: 0.192444976 | AJ33: -0.05154776143 | AK33: 0.01374606971 | AL33: -0.003436517429 | AM33: 0.005154776143
B34: 8 | D34: =I8+L8*(B34-B33)+O8*(B34-B33)^2+R8*(B34-B33)^3 -> 2.39958023 | X34: 1.369205607e-07 | Y34: -9.128037383e-08 | Z34: 3.651214953e-07 | AA34: -1.369205607e-06 | AB34: 5.111700934e-06 | AC34: -1.907759813e-05 | AD34: 7.119869159e-05 | AE34: -0.0002657171682 | AF34: 0.0009916699813 | AG34: -0.003700962757 | AH34: 0.01381218105 | AI34: -0.05154776143 | AJ34: 0.1923788647 | AK34: -0.05130103058 | AL34: 0.01282525764 | AM34: -0.01923788647
B35: 9 | C35: 2 | D35: 2 | X35: -3.651214953e-08 | Y35: 2.434143302e-08 | Z35: -9.736573208e-08 | AA35: 3.651214953e-07 | AB35: -1.363120249e-06 | AC35: 5.087359501e-06 | AD35: -1.898631776e-05 | AE35: 7.085791152e-05 | AF35: -0.0002644453283 | AG35: 0.0009869234018 | AH35: -0.003683248279 | AI35: 0.01374606971 | AJ35: -0.05130103058 | AK35: 0.1914580526 | AL35: -0.04786451315 | AM35: 0.07179676972
B36: 10 | D36: =I12+L12*(B36-B35)+O12*(B36-B35)^2+R12*(B36-B35)^3 -> 1.462038376 | X36: 9.128037383e-09 | Y36: -6.085358255e-09 | Z36: 2.434143302e-08 | AA36: -9.128037383e-08 | AB36: 3.407800623e-07 | AC36: -1.271839875e-06 | AD36: 4.746579439e-06 | AE36: -1.771447788e-05 | AF36: 6.611133209e-05 | AG36: -0.0002467308505 | AH36: 0.0009208120698 | AI36: -0.003436517429 | AJ36: 0.01282525764 | AK36: -0.04786451315 | AL36: 0.178632795 | AM36: -0.2679491924
B37: 10.5 | C37: 1.5 | X37: 0 | Y37: 0 | Z37: 0 | AA37: 0 | AB37: 0 | AC37: 0 | AD37: 0 | AE37: 0 | AF37: 0 | AG37: 0 | AH37: 0 | AI37: 0 | AJ37: 0 | AK37: 0 | AL37: 0 | AM37: 1
B38: 11 | D38: =I10+L10*(B38-B37)+O10*(B38-B37)^2+R10*(B38-B37)^3 -> 1.650970859
B39: 12 | C39: 2 | D39: 2
B40: 13 | D40: =I11+L11*(B40-B39)+O11*(B40-B39)^2+R11*(B40-B39)^3 -> 1.693606785
B41: 13.5 | C41: 1.5
B42: 14 | D42: =I12+L12*(B42-B41)+O12*(B42-B41)^2+R12*(B42-B41)^3 -> 1.436234016
B43: 15 | C43: 1.5 | D43: 1.5
B44: 16 | D44: =I13+L13*(B44-B43)+O13*(B44-B43)^2+R13*(B44-B43)^3 -> 1.476758231
B45: 16.5 | C45: 1.5
B46: 17 | D46: =I14+L14*(B46-B45)+O14*(B46-B45)^2+R14*(B46-B45)^3 -> 1.604453511
B47: 18 | C47: 2 | D47: 2
B48: 19 | D48: =I15+L15*(B48-B47)+O15*(B48-B47)^2+R15*(B48-B47)^3 -> 2.425452897
B49: 19.5 | C49: 2.5
B50: 20 | D50: =I16+L16*(B50-B49)+O16*(B50-B49)^2+R16*(B50-B49)^3 -> 2.415004026
B51: 21 | C51: 2 | D51: 2
B52: 22 | D52: =I17+L17*(B52-B51)+O17*(B52-B51)^2+R17*(B52-B51)^3 -> 1.646248993
B53: 22.5 | C53: 1.5

Sheet フーリエ変換
A2: ﾃﾞｰﾀ区間 | B2: =B21-B6+B4 -> 24
A3: ﾃﾞｰﾀ個数 | B3: =COUNT(B6:B21) -> 16
A4: 時間刻み | B4: =B7-B6 -> 1.5
B5: x | C5: y | D5: 波数ｋ | F5: 振幅 | G5: 位相 | H5: ｃｏｓ | I5: sin | J5: f | M5: 0 | N5: 1.5 | O5: 3 | P5: 4.5 | Q5: 6 | R5: 7.5 | S5: 9 | T5: 10.5 | U5: 12 | V5: 合成波
A6: 0 | B6: 0 | C6: 1.3 | D6: 0 | E6: 30.15 | F6: =IMABS(E6) -> 30.15 | G6: =IMARGUMENT(E6) -> 0 | H6: =IMREAL(E6)*$B$4/$B$2 -> 1.884375 | I6: =IMAGINARY(E6) -> 0 | J6: =D6/$B$2 -> 0 | L6: 0 | M6: =$H$6 -> 1.884375 | N6: =$H$7*COS(2*PI()*$J$7*L6)+0+$I$7*SIN(2*PI()*$J$7*L6) -> -0.008728649277 | O6: =$H$8*COS(2*PI()*$J$8*L6)+0+$I$8*SIN(2*PI()*$J$8*L6) -> -0.4151650429 | P6: =$H$9*COS(2*PI()*$J$9*L6)+0+$I$9*SIN(2*PI()*$J$9*L6) -> -0.2339208632 | Q6: =$H$10*COS(2*PI()*$J$10*L6)+0+$I$10*SIN(2*PI()*$J$10*L6) -> 0.05625 | R6: =$H$11*COS(2*PI()*$J$11*L6)+0+$I$11*SIN(2*PI()*$J$11*L6) -> -0.002950980113 | S6: =$H$12*COS(2*PI()*$J$12*L6)+0+$I$12*SIN(2*PI()*$J$12*L6) -> 0.1151650429 | T6: =$H$13*COS(2*PI()*$J$13*L6)+0+$I$13*SIN(2*PI()*$J$13*L6) -> -0.1043995074 | U6: =$H$14*COS(2*PI()*$J$14*L6)+0+$I$14*SIN(2*PI()*$J$14*L6) -> 0.01875 | V6: =SUM(M6:U6) -> 1.309375
A7: 1 | B7: 1.5 | C7: 1.5 | D7: 1 | E7: -6.98291942196195E-002-1.67136690592658i | F7: =IMABS(E7) -> 1.672824991 | G7: =IMARGUMENT(E7) -> -1.612551735 | H7: =IMREAL(E7)*$B$4/($B$2/2) -> -0.008728649277 | I7: =-IMAGINARY(E7)*$B$4/($B$2/2) -> 0.2089208632 | J7: =D7/$B$2 -> 0.04166666667 | L7: 1 | M7: =$H$6 -> 1.884375 | N7: =$H$7*COS(2*PI()*$J$7*L7)+0+$I$7*SIN(2*PI()*$J$7*L7) -> 0.04564147056 | O7: =$H$8*COS(2*PI()*$J$8*L7)+0+$I$8*SIN(2*PI()*$J$8*L7) -> -0.4443626478 | P7: =$H$9*COS(2*PI()*$J$9*L7)+0+$I$9*SIN(2*PI()*$J$9*L7) -> -0.2215509587 | Q7: =$H$10*COS(2*PI()*$J$10*L7)+0+$I$10*SIN(2*PI()*$J$10*L7) -> 0.1363781755 | R7: =$H$11*COS(2*PI()*$J$11*L7)+0+$I$11*SIN(2*PI()*$J$11*L7) -> -0.01648068775 | S7: =$H$12*COS(2*PI()*$J$12*L7)+0+$I$12*SIN(2*PI()*$J$12*L7) -> -0.007138347648 | T7: =$H$13*COS(2*PI()*$J$13*L7)+0+$I$13*SIN(2*PI()*$J$13*L7) -> 0.04831829856 | U7: =$H$14*COS(2*PI()*$J$14*L7)+0+$I$14*SIN(2*PI()*$J$14*L7) -> -0.009375 | V7: =SUM(M7:U7) -> 1.415805303
A8: 2 | B8: 3 | C8: 1.85 | D8: 2 | E8: -3.32132034355964+1.35710678118655i | F8: 3.587883449 | G8: 2.753690594 | H8: =IMREAL(E8)*$B$4/($B$2/2) -> -0.4151650429 | I8: =-IMAGINARY(E8)*$B$4/($B$2/2) -> -0.1696383476 | J8: 0.08333333333 | L8: 2 | M8: 1.884375 | N8: 0.09690119961 | O8: -0.35449364 | P8: -0.07939950737 | Q8: 0.08012817547 | R8: -0.005580051617 | S8: -0.1151650429 | T8: 0.07938811558 | U8: -0.009375 | V8: 1.576779249
A9: 3 | B9: 4.5 | C9: 2.5 | D9: 3 | E9: -1.87136690592658+0.6351960589498i | F9: 1.976230789 | G9: 2.814366134 | H9: -0.2339208632 | I9: -0.07939950737 | J9: 0.125 | L9: 3 | M9: 1.884375 | N9: 0.141557272 | O9: -0.1696383476 | P9: 0.1092630986 | Q9: -0.05625 | R9: 0.01359224048 | S9: 0.007138347648 | T9: -0.08941261109 | U9: 0.01875 | V9: 1.859375
A10: 4 | B10: 6 | C10: 2.5 | D10: 4 | E10: 0.449999999999999-i | F10: 1.09658561 | G10: -1.147942401 | H10: 0.05625 | I10: 0.125 | J10: 0.1666666667 | L10: 4 | M10: 1.884375 | N10: 0.1765664503 | O10: 0.06067140295 | P10: 0.2339208632 | Q10: -0.1363781755 | R10: 0.01261591302 | S10: 0.1151650429 | T10: -0.03310474233 | U10: -0.009375 | V10: 2.304456755
A11: 5 | B11: 7.5 | C11: 2.5 | D11: 5 | E11: -2.36078409040046E-002+0.13017080578038i | F11: 0.1322942509 | G11: 1.750206744 | H11: -0.002950980113 | I11: -0.01627135072 | J11: 0.2083333333 | L11: 5 | M11: 1.884375 | N11: 0.1995429168 | O11: 0.2747243001 | P11: 0.2215509587 | Q11: -0.08012817547 | R11: -0.007061763361 | S11: -0.007138347648 | T11: 0.1065488867 | U11: -0.009375 | V11: 2.583038776
A12: 6 | B12: 9 | C12: 2 | D12: 6 | E12: 0.921320343559642+5.71067811865444E-002i | F12: 0.9230884898 | G12: 0.06190443478 | H12: 0.1151650429 | I12: -0.007138347648 | J12: 0.25 | L12: 6 | M12: 1.884375 | N12: 0.2089208632 | O12: 0.4151650429 | P12: 0.07939950737 | Q12: 0.05625 | R12: -0.01627135072 | S12: -0.1151650429 | T12: -0.02204901989 | U12: 0.01875 | V12: 2.509375
A13: 7 | B13: 10.5 | C13: 1.5 | D13: 7 | E13: -0.8351960589498-0.176392159095994i | F13: 0.8536197342 | G13: -2.933452853 | H13: -0.1043995074 | I13: 0.02204901989 | J13: 0.2916666667 | L13: 7 | M13: 1.884375 | N13: 0.2040611981 | O13: 0.4443626478 | P13: -0.1092630986 | Q13: 0.1363781755 | R13: -0.001360907553 | S13: 0.007138347648 | T13: -0.09513547415 | U13: -0.009375 | V13: 2.461180889
A14: 8 | B14: 12 | C14: 2 | D14: 8 | E14: 0.149999999999999 | F14: 0.15 | G14: 0 | H14: 0.01875 | I14: 0 | J14: 0.3333333333 | L14: 8 | M14: 1.884375 | N14: 0.1852950996 | O14: 0.35449364 | P14: -0.2339208632 | Q14: 0.08012817547 | R14: 0.01556689314 | S14: 0.1151650429 | T14: 0.07129476504 | U14: -0.009375 | V14: 2.463022753
A15: 9 | B15: 13.5 | C15: 1.5 | E15: -0.835196058949798+0.176392159095995i | F15: 0.8536197342 | G15: 2.933452853 | L15: 9 | M15: 1.884375 | N15: 0.1539014462 | O15: 0.1696383476 | P15: -0.2215509587 | Q15: -0.05625 | R15: 0.009418924386 | S15: -0.007138347648 | T15: 0.05823058813 | U15: 0.01875 | V15: 2.009375
A16: 10 | B16: 15 | C16: 1.5 | E16: 0.921320343559643-5.71067811865491E-002i | F16: 0.9230884898 | G16: -0.06190443478 | L16: 10 | M16: 1.884375 | N16: 0.1120196636 | O16: -0.06067140295 | P16: -0.07939950737 | Q16: -0.1363781755 | R16: -0.01069129911 | S16: -0.1151650429 | T16: -0.1014371355 | U16: -0.009375 | V16: 1.4832771
A17: 11 | B17: 16.5 | C17: 1.5 | E17: -2.36078409040055E-002-0.130170805780383i | F17: 0.1322942509 | G17: -1.750206744 | L17: 11 | M17: 1.884375 | N17: 0.06250392609 | O17: -0.2747243001 | P17: 0.1092630986 | Q17: -0.08012817547 | R17: -0.01495314804 | S17: 0.007138347648 | T17: -0.005722863053 | U17: -0.009375 | V17: 1.678376886
A18: 12 | B18: 18 | C18: 2 | E18: 0.450000000000001+i | F18: 1.09658561 | G18: 1.147942401 | L18: 12 | M18: 1.884375 | N18: 0.008728649277 | O18: -0.4151650429 | P18: 0.2339208632 | Q18: 0.05625 | R18: 0.002950980113 | S18: 0.1151650429 | T18: 0.1043995074 | U18: 0.01875 | V18: 2.009375
A19: 13 | B19: 19.5 | C19: 2.5 | E19: -1.87136690592658-0.635196058949797i | F19: 1.976230789 | G19: -2.814366134 | L19: 13 | M19: 1.884375 | N19: -0.04564147056 | O19: -0.4443626478 | P19: 0.2215509587 | Q19: 0.1363781755 | R19: 0.01648068775 | S19: -0.007138347648 | T19: -0.04831829856 | U19: -0.009375 | V19: 1.703949057
A20: 14 | B20: 21 | C20: 2 | E20: -3.32132034355964-1.35710678118654i | F20: 3.587883449 | G20: -2.753690594 | L20: 14 | M20: 1.884375 | N20: -0.09690119961 | O20: -0.35449364 | P20: 0.07939950737 | Q20: 0.08012817547 | R20: 0.005580051617 | S20: -0.1151650429 | T20: -0.07938811558 | U20: -0.009375 | V20: 1.394159736
A21: 15 | B21: 22.5 | C21: 1.5 | E21: -6.98291942196155E-002+1.67136690592658i | F21: 1.672824991 | G21: 1.612551735 | L21: 15 | M21: 1.884375 | N21: -0.141557272 | O21: -0.1696383476 | P21: -0.1092630986 | Q21: -0.05625 | R21: -0.01359224048 | S21: 0.007138347648 | T21: 0.08941261109 | U21: 0.01875 | V21: 1.509375
L22: 16 | M22: 1.884375 | N22: -0.1765664503 | O22: 0.06067140295 | P22: -0.2339208632 | Q22: -0.1363781755 | R22: -0.01261591302 | S22: 0.1151650429 | T22: 0.03310474233 | U22: -0.009375 | V22: 1.524459786
L23: 17 | M23: 1.884375 | N23: -0.1995429168 | O23: 0.2747243001 | P23: -0.2215509587 | Q23: -0.08012817547 | R23: 0.007061763361 | S23: -0.007138347648 | T23: -0.1065488867 | U23: -0.009375 | V23: 1.541876778
F24: f | G24: 振幅 | L24: 18 | M24: 1.884375 | N24: -0.2089208632 | O24: 0.4151650429 | P24: -0.07939950737 | Q24: 0.05625 | R24: 0.01627135072 | S24: -0.1151650429 | T24: 0.02204901989 | U24: 0.01875 | V24: 2.009375
F25: 0 | G25: 30.15 | L25: 19 | M25: 1.884375 | N25: -0.2040611981 | O25: 0.4443626478 | P25: 0.1092630986 | Q25: 0.1363781755 | R25: 0.001360907553 | S25: 0.007138347648 | T25: 0.09513547415 | U25: -0.009375 | V25: 2.464577453
F26: 0.04166666667 | G26: 1.672824991 | L26: 20 | M26: 1.884375 | N26: -0.1852950996 | O26: 0.35449364 | P26: 0.2339208632 | Q26: 0.08012817547 | R26: -0.01556689314 | S26: 0.1151650429 | T26: -0.07129476504 | U26: -0.009375 | V26: 2.386550964
F27: 0.08333333333 | G27: 3.587883449 | L27: 21 | M27: 1.884375 | N27: -0.1539014462 | O27: 0.1696383476 | P27: 0.2215509587 | Q27: -0.05625 | R27: -0.009418924386 | S27: -0.007138347648 | T27: -0.05823058813 | U27: 0.01875 | V27: 2.009375
F28: 0.125 | G28: 1.976230789 | L28: 22 | M28: 1.884375 | N28: -0.1120196636 | O28: -0.06067140295 | P28: 0.07939950737 | Q28: -0.1363781755 | R28: 0.01069129911 | S28: -0.1151650429 | T28: 0.1014371355 | U28: -0.009375 | V28: 1.642293657
F29: 0.1666666667 | G29: 1.09658561 | L29: 23 | M29: 1.884375 | N29: -0.06250392609 | O29: -0.2747243001 | P29: -0.1092630986 | Q29: -0.08012817547 | R29: 0.01495314804 | S29: 0.007138347648 | T29: 0.005722863053 | U29: -0.009375 | V29: 1.376194858
F30: 0.2083333333 | G30: 0.1322942509
F31: 0.25 | G31: 0.9230884898
F32: 0.2916666667 | G32: 0.8536197342
F33: 0.3333333333 | G33: 0.15

Sheet 矩形波
C1: 1 | D1: 3 | E1: 5 | F1: 7 | G1: 9 | H1: 合計
A2: -2π | B2: -2 | C2: =4*SIN(B2*PI())/PI() -> 3.119814922e-16 | D2: =4*SIN(3*B2*PI())/PI()/3 -> 3.119814922e-16 | E2: =4*SIN(5*B2*PI())/PI()/5 -> 3.119814922e-16 | F2: =4*SIN(7*B2*PI())/PI()/7 -> 3.119814922e-16 | G2: =4*SIN(9*B2*PI())/PI()/9 -> 3.119814922e-16 | H2: =SUM(C2:G2) -> 1.559907461e-15
B3: -1.8 | C3: =4*SIN(B3*PI())/PI() -> 0.748391427 | D3: =4*SIN(3*B3*PI())/PI()/3 -> 0.4036409219 | E3: =4*SIN(5*B3*PI())/PI()/5 -> -2.80783343e-16 | F3: =4*SIN(7*B3*PI())/PI()/7 -> -0.1729889665 | G3: =4*SIN(9*B3*PI())/PI()/9 -> -0.083154603 | H3: =SUM(C3:G3) -> 0.8958887794
B4: -1.6 | C4: 1.210922766 | D4: -0.249463809 | E4: 2.495851938e-16 | F4: 0.106913061 | G4: -0.134546974 | H4: 0.9338250438
B5: -1.4 | C5: 1.210922766 | D5: -0.249463809 | E5: -2.183870445e-16 | F5: 0.106913061 | G5: -0.134546974 | H5: 0.9338250438
B6: -1.2 | C6: 0.748391427 | D6: 0.4036409219 | E6: 1.871888953e-16 | F6: -0.1729889665 | G6: -0.083154603 | H6: 0.8958887794
A7: -π | B7: -1 | C7: -1.559907461e-16 | D7: -1.559907461e-16 | E7: -1.559907461e-16 | F7: -1.559907461e-16 | G7: -1.559907461e-16 | H7: -7.799537305e-16
B8: -0.8 | C8: -0.748391427 | D8: -0.4036409219 | E8: 1.247925969e-16 | F8: 0.1729889665 | G8: 0.083154603 | H8: -0.8958887794
B9: -0.6 | C9: -1.210922766 | D9: 0.249463809 | E9: -9.359444766e-17 | F9: -0.106913061 | G9: 0.134546974 | H9: -0.9338250438
B10: -0.4 | C10: -1.210922766 | D10: 0.249463809 | E10: 6.239629844e-17 | F10: -0.106913061 | G10: 0.134546974 | H10: -0.9338250438
B11: -0.2 | C11: -0.748391427 | D11: -0.4036409219 | E11: -3.119814922e-17 | F11: 0.1729889665 | G11: 0.083154603 | H11: -0.8958887794
A12: 0 | B12: 0 | C12: 0 | D12: 0 | E12: 0 | F12: 0 | G12: 0 | H12: 0
B13: 0.2 | C13: 0.748391427 | D13: 0.4036409219 | E13: 3.119814922e-17 | F13: -0.1729889665 | G13: -0.083154603 | H13: 0.8958887794
B14: 0.4 | C14: 1.210922766 | D14: -0.249463809 | E14: -6.239629844e-17 | F14: 0.106913061 | G14: -0.134546974 | H14: 0.9338250438
B15: 0.6 | C15: 1.210922766 | D15: -0.249463809 | E15: 9.359444766e-17 | F15: 0.106913061 | G15: -0.134546974 | H15: 0.9338250438
B16: 0.8 | C16: 0.748391427 | D16: 0.4036409219 | E16: -1.247925969e-16 | F16: -0.1729889665 | G16: -0.083154603 | H16: 0.8958887794
A17: π | B17: 1 | C17: 1.559907461e-16 | D17: 1.559907461e-16 | E17: 1.559907461e-16 | F17: 1.559907461e-16 | G17: 1.559907461e-16 | H17: 7.799537305e-16
B18: 1.2 | C18: -0.748391427 | D18: -0.4036409219 | E18: -1.871888953e-16 | F18: 0.1729889665 | G18: 0.083154603 | H18: -0.8958887794
B19: 1.4 | C19: -1.210922766 | D19: 0.249463809 | E19: 2.183870445e-16 | F19: -0.106913061 | G19: 0.134546974 | H19: -0.9338250438
B20: 1.6 | C20: -1.210922766 | D20: 0.249463809 | E20: -2.495851938e-16 | F20: -0.106913061 | G20: 0.134546974 | H20: -0.9338250438
B21: 1.8 | C21: -0.748391427 | D21: -0.4036409219 | E21: 2.80783343e-16 | F21: 0.1729889665 | G21: 0.083154603 | H21: -0.8958887794
A22: 2π | B22: 2 | C22: -3.119814922e-16 | D22: -3.119814922e-16 | E22: -3.119814922e-16 | F22: -3.119814922e-16 | G22: -3.119814922e-16 | H22: -1.559907461e-15
